{"text_format":"2","workbook":"xlsx","n_sheets":2,"sheets":["Salaried Employee","Comissioned Employee"],"not_rendered":{"charts":0,"images":1,"macros":0,"external_links":0,"defined_names":0,"comments":0,"pivot_tables":0},"unopened":[],"bounds":{"document_bytes":16777216,"sheet_cells":100000,"run_cost":"one","rows_first":2000,"rows_last":500,"rows_between":2000,"halvings":0,"cell_chars":16384,"cell_head_chars":4096},"cells_cut":0,"cells_raw":0,"read":"whole","date_system":"1900"}

{"sheet":"Salaried Employee","index":0,"n_rows":19,"n_cols":11,"rows_kept":19,"cut":false,"hidden":false,"merged":[]}
["Work from Home Expense - Salaried Employee",{"$nulls":6},"For more details: Pls see ",null,null,"https://www.canada.ca/en/revenue-agency/services/tax/individuals/topics/about-your-tax-return/tax-return/completing-a-tax-return/deductions-credits-expenses/line-22900-other-employment-expenses/work-space-home-expenses/expenses-can-claim.html"]
[]
[null,"Business ","Gross",null,"Business use of Home","Net"]
[null,"Office stationery and supplies "]
[null,"Rent Paid",null,null,"Heat ",0]
[null,"Other expenses (specify)",null,null,"Electricity ",{"$f":"+F5","v":0}]
[{"$nulls":4},"Maintenance and minor repairs",{"$f":"+F6","v":0}]
[{"$nulls":4},"Other expenses",0]
[{"$nulls":4},"Water",0]
[{"$nulls":4},"Home Internet",0]
[{"$nulls":5},0]
[null,"Total",{"$f":"SUM(C6:C11)","v":0},null,"Total",{"$f":"SUM(F4:F11)","v":0}]
[]
[{"$nulls":4},"Office use (sq Ft)",400]
[{"$nulls":4},"Total Home (sq Ft)",2000]
[]
[{"$nulls":4},"% used",{"$f":"++IFERROR(F14/F15,)","v":0.2}]
[]
[{"$nulls":4},"Total Business",{"$f":"+F12*$F$17","v":0}]

{"sheet":"Comissioned Employee","index":1,"n_rows":21,"n_cols":12,"rows_kept":21,"cut":false,"hidden":false,"merged":[]}
["Work from Home Expense - Salaried Employee",{"$nulls":7},"For more details: Pls see ",null,null,"https://www.canada.ca/en/revenue-agency/services/tax/individuals/topics/about-your-tax-return/tax-return/completing-a-tax-return/deductions-credits-expenses/line-22900-other-employment-expenses/work-space-home-expenses/expenses-can-claim.html"]
[]
[null,"Business ","Gross",null,"Business use of Home","Gross","Net"]
[null,"Office stationery and supplies "]
[null,"Rent Paid",null,null,"Heat ",null,{"$f":"+F5","v":0}]
[null,"Other expenses (specify)",null,null,"Electricity ",null,{"$f":"+F6","v":0}]
[null,"Computer Lease / Phone lease",null,null,"Insurance ",null,0]
[{"$nulls":4},"Maintenance and minor repairs",null,0]
[{"$nulls":4},"Property taxes ",null,0]
[{"$nulls":4},"Other expenses",null,0]
[{"$nulls":4},"Water",null,0]
[null,"Total",{"$f":"SUM(C6:C11)","v":0},null,"Home Internet",null,0]
[{"$nulls":6},0]
[{"$nulls":4},"Total",{"$f":"SUM(F4:F13)","v":0},{"$f":"SUM(G4:G13)","v":0}]
[]
[{"$nulls":4},"Office use (sq Ft)",null,400]
[{"$nulls":4},"Total Home (sq Ft)",null,2000]
[]
[{"$nulls":4},"% used",null,{"$f":"++IFERROR(G16/G17,)","v":0.2}]
[]
[{"$nulls":4},"Total Business",{"$f":"+F14*$G$19","v":0},{"$f":"+G14*$G$19","v":0}]